[Event "US Masters"]
[Site "Charlotte USA"]
[Date "2023.11.24"]
[Round "4.19"]
[White "Tiglon, Bryce"]
[Black "Atanasov, Anthony"]
[Result "1/2-1/2"]
[ECO "D15"]
[WhiteElo "2468"]
[BlackElo "2406"]
[PlyCount "39"]
[EventDate "2023.11.24"]
[EventType "swiss"]
[EventRounds "9"]
[EventCountry "USA"]
[Source "ChessMix"]
[SourceDate "2023.12.01"]
[TimeControl "5400+30"]

1. d4 {[%emt 0:14:55]} Nf6 {[%emt 0:01:28]} 2. c4 {[%emt 0:00:02]} c6 {
[%emt 0:01:28]} 3. Nc3 {[%emt 0:00:29]} d5 {[%emt 0:00:04]} 4. Nf3 {
[%emt 0:00:15]} a6 {[%emt 0:00:17]} 5. e3 {[%emt 0:04:19]} Bf5 {[%emt 0:00:20]}
6. Ne5 {[%emt 0:00:50]} Nbd7 {[%emt 0:02:03]} 7. Qb3 {[%emt 0:05:10]} Qc7 {
[%emt 0:00:20]} 8. cxd5 {[%emt 0:02:04]} Nxe5 {[%emt 0:00:02]} 9. dxe5 {
[%emt 0:00:13]} Nxd5 {[%emt 0:00:08]} 10. Bc4 {[%emt 0:07:17]} e6 {
[%emt 0:03:46]} 11. e4 {[%emt 0:00:22]} Nxc3 {[%emt 0:00:19]} 12. exf5 {
[%emt 0:00:10]} Qxe5+ {[%emt 0:24:51]} 13. Be3 {[%emt 0:04:11]} Nd5 {
[%emt 0:04:27]} 14. Bxd5 {[%emt 0:11:42]} Qxd5 {[%emt 0:00:14]} 15. Qxb7 {
[%emt 0:00:25]} c5 {[%emt 0:00:30]} 16. Qxd5 {[%emt 0:00:30]} exd5 {
[%emt 0:00:30]} 17. Rc1 {[%emt 0:00:30]} d4 {[%emt 0:24:37]} 18. Bf4 {
[%emt 0:26:36]} a5 {[%emt 0:00:41]} 19. Ke2 {[%emt 0:03:00]} Kd7 {
[%emt 0:00:45]} 20. Kd3 {[%emt 0:01:27]} 1/2-1/2

[Event "US Masters"]
[Site "Charlotte USA"]
[Date "2023.11.25"]
[Round "5.16"]
[White "Atanasov, Anthony"]
[Black "Dudin, Gleb"]
[Result "0-1"]
[ECO "E90"]
[WhiteElo "2406"]
[BlackElo "2537"]
[PlyCount "100"]
[EventDate "2023.11.24"]
[EventType "swiss"]
[EventRounds "9"]
[EventCountry "USA"]
[Source "ChessMix"]
[SourceDate "2023.12.01"]
[TimeControl "5400+30"]

1. d4 {[%emt 0:00:12]} Nf6 {[%emt 1:31:00]} 2. Nf3 {[%emt 0:00:09]} g6 {
[%emt 0:00:00]} 3. c4 {[%emt 0:00:12]} Bg7 {[%emt 0:00:00]} 4. Nc3 {
[%emt 0:00:18]} O-O {[%emt 0:00:00]} 5. e4 {[%emt 0:00:55]} d6 {[%emt 0:00:00]}
6. Be3 {[%emt 0:01:10]} e5 {[%emt 0:00:00]} 7. dxe5 {[%emt 0:00:09]} dxe5 {
[%emt 0:00:00]} 8. Qc2 {[%emt 0:00:18]} c6 {[%emt 0:00:00]} 9. Nxe5 {
[%emt 0:00:16]} Re8 {[%emt 0:00:00]} 10. Nf3 {[%emt 0:00:12]} Na6 {
[%emt 0:00:00]} 11. h3 {[%emt 0:28:22]} Nxe4 {[%emt 0:00:00]} 12. Nxe4 {
[%emt 0:00:02]} Bf5 {[%emt 0:00:00]} 13. Nfd2 {[%emt 0:00:58]} Bxe4 {
[%emt 0:00:00]} 14. Nxe4 {[%emt 0:00:13]} Qh4 {[%emt 0:00:00]} 15. Be2 {
[%emt 0:24:51]} Rxe4 {[%emt 0:00:00]} 16. O-O {[%emt 0:00:58]} Rae8 {
[%emt 0:00:00]} 17. Qb3 {[%emt 0:14:41]} Rxe3 {[%emt 0:00:00]} 18. fxe3 {
[%emt 0:00:30]} Nc5 {[%emt 0:00:00]} 19. Qd1 {[%emt 0:10:10]} Rxe3 {
[%emt 0:00:00]} 20. Bg4 {[%emt 0:06:55]} h5 {[%emt 0:00:00]} 21. Qd2 {
[%emt 0:03:13]} Rd3 {[%emt 0:00:00]} 22. Qf4 {[%emt 0:00:26]} hxg4 {
[%emt 0:00:00]} 23. Qxf7+ {[%emt 0:00:08]} Kh7 {[%emt 0:00:00]} 24. Rf4 {
[%emt 0:02:43]} Rg3 {[%emt 0:07:41]} 25. Rxg4 {[%emt 0:01:02]} Rxg4 {
[%emt 0:00:58]} 26. hxg4 {[%emt 0:00:01]} Nd3 {[%emt 0:01:41]} 27. Rf1 {
[%emt 0:04:20]} Kh6 {[%emt 0:01:42]} 28. Qd7 {[%emt 0:00:20]} Ne5 {
[%emt 0:00:49]} 29. g5+ {[%emt 0:00:42]} Qxg5 {[%emt 0:00:30]} 30. Qh3+ {
[%emt 0:00:31]} Qh5 {[%emt 0:00:06]} 31. Qe3+ {[%emt 0:00:31]} Kh7 {
[%emt 0:00:19]} 32. Qxa7 {[%emt 0:00:24]} Ng4 {[%emt 0:00:32]} 33. Rf7 {
[%emt 0:00:28]} Kh6 {[%emt 0:01:06]} 34. Rxg7 {[%emt 0:00:37]} Qh2+ {
[%emt 0:00:17]} 35. Kf1 {[%emt 0:00:00]} Qh1+ {[%emt 0:00:41]} 36. Ke2 {
[%emt 0:00:01]} Qxg2+ {[%emt 0:00:11]} 37. Kd1 {[%emt 0:01:30]} Kxg7 {
[%emt 0:00:52]} 38. Qxb7+ {[%emt 0:00:01]} Kh6 {[%emt 0:00:31]} 39. Qb8 {
[%emt 0:00:59]} Ne3+ {[%emt 0:00:32]} 40. Ke1 {[%emt 0:00:01]} Nc2+ {
[%emt 0:00:24]} 41. Kd1 {[%emt 0:00:02]} Ne3+ {[%emt 0:00:07]} 42. Ke1 {
[%emt 0:00:00]} Qf1+ {[%emt 0:00:43]} 43. Kd2 {[%emt 0:00:01]} Nxc4+ {
[%emt 0:00:27]} 44. Kc3 {[%emt 0:00:36]} Qc1+ {[%emt 0:00:26]} 45. Kd3 {
[%emt 0:00:02]} Nxb2+ {[%emt 0:00:32]} 46. Ke2 {[%emt 0:00:25]} Qd1+ {
[%emt 0:00:30]} 47. Kf2 {[%emt 0:00:11]} Qd4+ {[%emt 0:00:22]} 48. Kf1 {
[%emt 0:00:54]} Nd3 {[%emt 0:00:47]} 49. Qh2+ {[%emt 0:00:39]} Kg5 {
[%emt 0:00:13]} 50. Qg3+ {[%emt 0:00:07]} Kf6 {[%emt 0:00:35]} 0-1

[Event "US Masters"]
[Site "Charlotte USA"]
[Date "2023.11.26"]
[Round "7.16"]
[White "Atanasov, Anthony"]
[Black "Quesada Perez, Yasser"]
[Result "0-1"]
[ECO "D02"]
[WhiteElo "2406"]
[BlackElo "2594"]
[PlyCount "120"]
[EventDate "2023.11.24"]
[EventType "swiss"]
[EventRounds "9"]
[EventCountry "USA"]
[Source "ChessMix"]
[SourceDate "2023.12.01"]
[TimeControl "5400+30"]

1. d4 {[%emt 0:00:03]} Nf6 {[%emt 0:00:29]} 2. Nf3 {[%emt 0:00:13]} d5 {
[%emt 0:00:11]} 3. a3 {[%emt 0:00:31]} g6 {[%emt 0:01:54]} 4. c4 {
[%emt 0:00:19]} Bg7 {[%emt 0:00:13]} 5. cxd5 {[%emt 0:00:14]} O-O {
[%emt 0:00:27]} 6. e3 {[%emt 0:00:09]} Bf5 {[%emt 0:03:38]} 7. Be2 {
[%emt 0:04:26]} Nxd5 {[%emt 0:00:57]} 8. Nbd2 {[%emt 0:00:37]} Nf6 {
[%emt 0:02:08]} 9. b4 {[%emt 0:06:49]} Nbd7 {[%emt 0:21:05]} 10. Bb2 {
[%emt 0:00:45]} Ne4 {[%emt 0:00:55]} 11. Nh4 {[%emt 0:21:24]} e6 {
[%emt 0:01:52]} 12. Nxf5 {[%emt 0:01:37]} exf5 {[%emt 0:00:04]} 13. Nxe4 {
[%emt 0:01:40]} fxe4 {[%emt 0:00:04]} 14. Qc2 {[%emt 0:00:52]} Nf6 {
[%emt 1:03:33]} 15. O-O {[%emt 0:58:21]} Re8 {[%emt 0:00:30]} 16. Bc4 {
[%emt 0:00:00]} c6 {[%emt 0:00:30]} 17. f3 {[%emt 0:00:00]} a6 {[%emt 0:00:00]}
18. Rae1 {[%emt 0:00:00]} Qe7 {[%emt 0:00:00]} 19. a4 {[%emt 0:00:00]} Rf8 {
[%emt 0:01:30]} 20. Re2 {[%emt 0:00:00]} Kh8 {[%emt 0:00:00]} 21. Ref2 {
[%emt 0:00:00]} exf3 {[%emt 0:00:00]} 22. Rxf3 {[%emt 0:00:00]} Nd5 {
[%emt 0:01:30]} 23. Qb3 {[%emt 0:00:00]} f5 {[%emt 0:00:00]} 24. Ba3 {
[%emt 0:00:00]} Qe4 {[%emt 0:00:00]} 25. b5 {[%emt 0:00:00]} Rfe8 {
[%emt 0:00:00]} 26. bxc6 {[%emt 0:00:00]} bxc6 {[%emt 0:00:00]} 27. Bd3 {
[%emt 0:00:00]} Qe6 {[%emt 0:00:00]} 28. Bc4 {[%emt 0:00:00]} a5 {
[%emt 0:00:00]} 29. Qd3 {[%emt 0:00:00]} Qd7 {[%emt 0:00:00]} 30. Kh1 {
[%emt 0:00:00]} Re4 {[%emt 0:00:00]} 31. Bc1 {[%emt 0:00:58]} Rae8 {
[%emt 0:00:00]} 32. Rh3 {[%emt 0:03:34]} Bf6 {[%emt 0:00:00]} 33. Qa3 {
[%emt 0:02:43]} Be7 {[%emt 0:00:00]} 34. Qb2 {[%emt 0:01:18]} Bg5 {
[%emt 0:00:00]} 35. Bxd5 {[%emt 0:00:44]} cxd5 {[%emt 0:00:00]} 36. Qb6 {
[%emt 0:00:08]} R4e6 {[%emt 0:00:00]} 37. Qxa5 {[%emt 0:00:02]} Qb7 {
[%emt 0:00:00]} 38. Rg3 {[%emt 0:00:34]} h6 {[%emt 0:00:00]} 39. Bd2 {
[%emt 0:01:24]} Rb6 {[%emt 0:08:30]} 40. Qc3 {[%emt 0:00:32]} Qa6 {
[%emt 0:00:00]} 41. Qa1 {[%emt 0:00:13]} Qd3 {[%emt 0:00:00]} 42. a5 {
[%emt 0:00:16]} Rb5 {[%emt 0:00:00]} 43. Rd1 {[%emt 0:00:05]} Reb8 {
[%emt 0:00:00]} 44. a6 {[%emt 0:01:19]} Qe2 {[%emt 0:00:00]} 45. Bc3 {
[%emt 0:00:38]} Qxd1+ {[%emt 0:01:35]} 46. Qxd1 {[%emt 0:00:02]} Rb1 {
[%emt 0:00:04]} 47. Qg1 {[%emt 0:00:26]} Rxg1+ {[%emt 0:00:05]} 48. Kxg1 {
[%emt 0:00:01]} Kh7 {[%emt 0:00:24]} 49. Rf3 {[%emt 0:00:34]} Ra8 {
[%emt 0:00:26]} 50. g4 {[%emt 0:00:12]} fxg4 {[%emt 0:00:21]} 51. Rf7+ {
[%emt 0:00:04]} Kg8 {[%emt 0:00:06]} 52. Rd7 {[%emt 0:00:20]} Bxe3+ {
[%emt 0:00:17]} 53. Kg2 {[%emt 0:00:06]} Rxa6 {[%emt 0:00:05]} 54. Rxd5 {
[%emt 0:02:31]} Ra2+ {[%emt 0:00:05]} 55. Kg3 {[%emt 0:00:08]} h5 {
[%emt 0:00:15]} 56. Rc5 {[%emt 0:00:54]} g5 {[%emt 0:00:31]} 57. Rc8+ {
[%emt 0:00:42]} Kf7 {[%emt 0:00:07]} 58. Rc7+ {[%emt 0:00:03]} Ke8 {
[%emt 0:00:10]} 59. Rc8+ {[%emt 0:00:19]} Kd7 {[%emt 0:00:05]} 60. Rf8 {
[%emt 0:00:04]} Bg1 {[%emt 0:00:51]} 0-1

[Event "Silicon Valley Fall op"]
[Site "Sunnyvale USA"]
[Date "2023.09.04"]
[Round "9.8"]
[White "Atanasov, Anthony"]
[Black "Burke, John M"]
[Result "1-0"]
[ECO "D80"]
[WhiteElo "2387"]
[BlackElo "2604"]
[PlyCount "59"]
[EventDate "2023.08.31"]
[EventType "swiss"]
[EventRounds "9"]
[EventCountry "USA"]
[Source "ChessMix"]
[SourceDate "2023.09.10"]
[TimeControl "5400+30"]

1. d4 {[%emt 0:00:03]} Nf6 {[%emt 0:03:33]} 2. c4 {[%emt 0:00:06]} g6 {
[%emt 0:00:25]} 3. Nc3 {[%emt 0:00:11]} d5 {[%emt 0:00:05]} 4. Bg5 {
[%emt 0:00:27]} Ne4 {[%emt 0:00:26]} 5. h4 {[%emt 0:00:11]} Bg7 {[%emt 0:04:36]
} 6. cxd5 {[%emt 0:00:17]} Nxg5 {[%emt 0:00:31]} 7. hxg5 {[%emt 0:00:26]} c5 {
[%emt 0:01:01]} 8. dxc5 {[%emt 0:03:20]} Nd7 {[%emt 0:01:53]} 9. e4 {
[%emt 0:25:09]} Qa5 {[%emt 0:11:32]} 10. Qf3 {[%emt 0:05:16]} O-O {
[%emt 0:05:27]} 11. Qh3 {[%emt 0:02:30]} h5 {[%emt 0:05:22]} 12. gxh6 {
[%emt 0:00:38]} Bd4 {[%emt 0:03:33]} 13. Qd3 {[%emt 0:11:12]} Bxc5 {
[%emt 0:08:25]} 14. Nf3 {[%emt 0:01:31]} Nf6 {[%emt 0:04:20]} 15. Be2 {
[%emt 0:12:55]} Ng4 {[%emt 0:00:31]} 16. O-O {[%emt 0:03:28]} Qb6 {
[%emt 0:02:17]} 17. h7+ {[%emt 0:00:58]} Kg7 {[%emt 0:01:15]} 18. Nd1 {
[%emt 0:00:01]} Rh8 {[%emt 0:05:31]} 19. Rc1 {[%emt 0:13:49]} Bd6 {
[%emt 0:02:07]} 20. Ne3 {[%emt 0:00:34]} Rxh7 {[%emt 0:02:27]} 21. Rxc8 {
[%emt 0:01:56]} Rxc8 {[%emt 0:03:46]} 22. Nxg4 {[%emt 0:00:04]} Qxb2 {
[%emt 0:00:46]} 23. e5 {[%emt 0:01:15]} Bb8 {[%emt 0:04:41]} 24. Qe4 {
[%emt 0:03:45]} Qxa2 {[%emt 0:01:42]} 25. g3 {[%emt 0:01:36]} Qb2 {
[%emt 0:01:55]} 26. Kg2 {[%emt 0:04:31]} Rc1 {[%emt 0:13:12]} 27. Qf4 {
[%emt 0:00:49]} Rxf1 {[%emt 0:00:48]} 28. Bxf1 {[%emt 0:00:02]} Qb3 {
[%emt 0:01:41]} 29. d6 {[%emt 0:00:46]} Qe6 {[%emt 0:02:20]} 30. Bc4 {
[%emt 0:00:25]} 1-0

[Event "Charlotte Super Swiss"]
[Site "Charlotte USA"]
[Date "2023.07.09"]
[Round "1"]
[White "Padhye, Rohan"]
[Black "Atanasov, Anthony"]
[Result "1/2-1/2"]
[ECO "C43"]
[WhiteElo "2136"]
[BlackElo "2367"]
[PlyCount "86"]
[EventDate "2023.07.09"]
[EventType "swiss"]
[EventRounds "9"]
[EventCountry "USA"]
[Source "ChessMix"]
[SourceDate "2023.07.20"]
[TimeControl "5400+30"]

1. e4 {[%emt 0:00:04]} e5 {[%emt 0:00:54]} 2. Nf3 {[%emt 0:00:09]} Nf6 {
[%emt 0:00:20]} 3. d4 {[%emt 0:00:36]} Nxe4 {[%emt 0:00:29]} 4. Bd3 {
[%emt 0:00:12]} d5 {[%emt 0:00:13]} 5. Nxe5 {[%emt 0:00:21]} Nd7 {
[%emt 0:00:54]} 6. Nc3 {[%emt 0:00:27]} Nxe5 {[%emt 0:01:08]} 7. dxe5 {
[%emt 0:00:17]} Bb4 {[%emt 0:00:18]} 8. O-O {[%emt 0:01:07]} Nxc3 {
[%emt 0:00:22]} 9. bxc3 {[%emt 0:00:10]} Bxc3 {[%emt 0:00:09]} 10. Rb1 {
[%emt 0:00:07]} O-O {[%emt 0:00:10]} 11. Bxh7+ {[%emt 0:00:31]} Kxh7 {
[%emt 0:00:03]} 12. Qd3+ {[%emt 0:00:10]} Kg8 {[%emt 0:00:08]} 13. Qxc3 {
[%emt 0:00:06]} a5 {[%emt 0:00:03]} 14. Qg3 {[%emt 0:00:27]} Ra6 {
[%emt 0:00:20]} 15. Bg5 {[%emt 0:00:18]} Qd7 {[%emt 0:00:06]} 16. f4 {
[%emt 0:00:17]} Qf5 {[%emt 0:01:26]} 17. Rb3 {[%emt 0:00:12]} Rg6 {
[%emt 0:05:10]} 18. Qf2 {[%emt 0:00:13]} Qe4 {[%emt 0:07:11]} 19. h4 {
[%emt 0:07:42]} Rc6 {[%emt 0:09:36]} 20. Qg3 {[%emt 0:04:46]} Rxc2 {
[%emt 0:13:10]} 21. Bf6 {[%emt 0:12:49]} Qh7 {[%emt 0:09:48]} 22. Qg5 {
[%emt 0:00:50]} Qg6 {[%emt 0:01:44]} 23. Rg3 {[%emt 0:14:09]} gxf6 {
[%emt 0:06:56]} 24. exf6 {[%emt 0:00:52]} Rd8 {[%emt 0:19:34]} 25. Rff3 {
[%emt 0:02:45]} Kh8 {[%emt 0:10:05]} 26. Qe5 {[%emt 0:04:11]} Rc1+ {
[%emt 0:00:12]} 27. Kh2 {[%emt 0:01:05]} Qb1 {[%emt 0:01:01]} 28. Qh5+ {
[%emt 0:03:51]} Qh7 {[%emt 0:00:08]} 29. Rg5 {[%emt 0:04:56]} Rc6 {
[%emt 0:01:31]} 30. Re3 {[%emt 0:04:42]} Rxf6 {[%emt 0:00:57]} 31. Qe2 {
[%emt 0:01:16]} Be6 {[%emt 0:03:55]} 32. Rh5 {[%emt 0:03:14]} Rh6 {
[%emt 0:00:11]} 33. Ree5 {[%emt 0:00:31]} Kg8 {[%emt 0:01:42]} 34. Reg5+ {
[%emt 0:03:48]} Kf8 {[%emt 0:00:10]} 35. f5 {[%emt 0:00:22]} Bc8 {
[%emt 0:03:07]} 36. f6 {[%emt 0:02:54]} Be6 {[%emt 0:00:01]} 37. Qe5 {
[%emt 0:01:01]} Rd6 {[%emt 0:03:12]} 38. Rxh6 {[%emt 0:02:00]} Qxh6 {
[%emt 0:00:00]} 39. Rh5 {[%emt 0:00:16]} Qxh5 {[%emt 0:00:02]} 40. Qxh5 {
[%emt 0:00:09]} Ke8 {[%emt 0:00:01]} 41. Qe2 {[%emt 0:03:03]} d4 {
[%emt 0:00:14]} 42. Qb5+ {[%emt 0:00:23]} Kd8 {[%emt 0:01:12]} 43. Qd3 {
[%emt 0:04:27]} Rd5 {[%emt 0:00:02]} 1/2-1/2

[Event "Charlotte Super Swiss"]
[Site "Charlotte USA"]
[Date "2023.07.10"]
[Round "2"]
[White "Atanasov, Anthony"]
[Black "Doknjas, Neil"]
[Result "1-0"]
[ECO "D00"]
[WhiteElo "2367"]
[BlackElo "2126"]
[PlyCount "131"]
[EventDate "2023.07.09"]
[EventType "swiss"]
[EventRounds "9"]
[EventCountry "USA"]
[Source "ChessMix"]
[SourceDate "2023.07.20"]
[TimeControl "5400+30"]

1. d4 {[%emt 0:00:01]} d5 {[%emt 0:01:01]} 2. Bf4 {[%emt 0:00:12]} c5 {
[%emt 0:00:42]} 3. Nf3 {[%emt 0:00:46]} Nc6 {[%emt 0:01:49]} 4. e3 {
[%emt 0:00:13]} cxd4 {[%emt 0:00:31]} 5. Nxd4 {[%emt 0:02:29]} f6 {
[%emt 0:08:33]} 6. c4 {[%emt 0:01:27]} e5 {[%emt 0:01:54]} 7. Nxc6 {
[%emt 0:00:16]} bxc6 {[%emt 0:00:14]} 8. Bg3 {[%emt 0:00:02]} d4 {
[%emt 0:18:07]} 9. Nd2 {[%emt 0:17:27]} dxe3 {[%emt 0:06:16]} 10. fxe3 {
[%emt 0:00:02]} Qb6 {[%emt 0:00:31]} 11. Qh5+ {[%emt 0:02:47]} g6 {
[%emt 0:00:33]} 12. Qf3 {[%emt 0:00:02]} Bc5 {[%emt 0:10:42]} 13. Bd3 {
[%emt 0:01:14]} Be6 {[%emt 0:17:04]} 14. O-O-O {[%emt 0:20:56]} O-O-O {
[%emt 0:01:53]} 15. e4 {[%emt 0:11:13]} Be3 {[%emt 0:02:00]} 16. Kc2 {
[%emt 0:01:30]} h5 {[%emt 0:05:23]} 17. h3 {[%emt 0:02:39]} h4 {[%emt 0:04:01]}
18. Bh2 {[%emt 0:01:09]} Rh7 {[%emt 0:09:26]} 19. Nb3 {[%emt 0:02:36]} Rhd7 {
[%emt 0:01:46]} 20. Rhe1 {[%emt 0:00:59]} Bc5 {[%emt 0:03:35]} 21. Nxc5 {
[%emt 0:00:41]} Qxc5 {[%emt 0:00:01]} 22. Bg1 {[%emt 0:00:17]} Qb4 {
[%emt 0:02:16]} 23. a3 {[%emt 0:03:29]} Qa4+ {[%emt 0:00:24]} 24. b3 {
[%emt 0:01:43]} Qxa3 {[%emt 0:00:18]} 25. Ra1 {[%emt 0:00:05]} Qb4 {
[%emt 0:01:02]} 26. Red1 {[%emt 0:00:52]} c5 {[%emt 0:01:08]} 27. Qe3 {
[%emt 0:05:16]} Ne7 {[%emt 0:00:58]} 28. Qxc5+ {[%emt 0:04:05]} Qxc5 {
[%emt 0:00:01]} 29. Bxc5 {[%emt 0:00:02]} Nc6 {[%emt 0:00:13]} 30. Kc3 {
[%emt 0:01:39]} f5 {[%emt 0:00:40]} 31. exf5 {[%emt 0:01:58]} gxf5 {
[%emt 0:00:13]} 32. Bf2 {[%emt 0:03:25]} e4 {[%emt 0:00:31]} 33. Be2 {
[%emt 0:00:28]} Rg8 {[%emt 0:01:27]} 34. Bf1 {[%emt 0:01:01]} f4 {
[%emt 0:00:43]} 35. Bxh4 {[%emt 0:01:15]} Rh7 {[%emt 0:00:56]} 36. Rd6 {
[%emt 0:00:50]} Bd7 {[%emt 0:00:32]} 37. Be1 {[%emt 0:00:30]} Kc7 {
[%emt 0:00:34]} 38. Rf6 {[%emt 0:01:41]} f3 {[%emt 0:00:01]} 39. gxf3 {
[%emt 0:00:15]} Bxh3 {[%emt 0:00:10]} 40. fxe4 {[%emt 0:01:06]} Bxf1 {
[%emt 0:00:07]} 41. Rxf1 {[%emt 0:00:02]} Rh3+ {[%emt 0:00:59]} 42. Kb2 {
[%emt 0:00:35]} Rg2+ {[%emt 0:00:34]} 43. Rf2 {[%emt 0:00:57]} Rg4 {
[%emt 0:00:28]} 44. Rf7+ {[%emt 0:02:45]} Kb8 {[%emt 0:00:01]} 45. Bd2 {
[%emt 0:04:40]} Rh2 {[%emt 0:01:16]} 46. Rd1 {[%emt 0:00:50]} Rxe4 {
[%emt 0:00:04]} 47. Ka3 {[%emt 0:00:17]} Rhh4 {[%emt 0:01:29]} 48. Bg5 {
[%emt 0:01:54]} Rh8 {[%emt 0:00:49]} 49. Rdd7 {[%emt 0:00:37]} Rc8 {
[%emt 0:00:18]} 50. b4 {[%emt 0:01:44]} Rxc4 {[%emt 0:00:21]} 51. Rb7+ {
[%emt 0:00:17]} Ka8 {[%emt 0:00:03]} 52. b5 {[%emt 0:00:06]} Nd8 {
[%emt 0:01:19]} 53. Rxa7+ {[%emt 0:00:28]} Kb8 {[%emt 0:00:01]} 54. Rfd7 {
[%emt 0:00:59]} Rg4 {[%emt 0:00:42]} 55. Bf6 {[%emt 0:00:35]} Rg3+ {
[%emt 0:00:27]} 56. Kb4 {[%emt 0:00:11]} Rg4+ {[%emt 0:00:38]} 57. Ka5 {
[%emt 0:00:16]} Re4 {[%emt 0:00:24]} 58. Be7 {[%emt 0:00:52]} Re6 {
[%emt 0:00:15]} 59. Bh4 {[%emt 0:00:41]} Re3 {[%emt 0:00:41]} 60. Ka6 {
[%emt 0:00:35]} Ra3+ {[%emt 0:00:48]} 61. Kb6 {[%emt 0:00:01]} Rxa7 {
[%emt 0:00:19]} 62. Bg3+ {[%emt 0:00:10]} Rac7 {[%emt 0:00:26]} 63. Bxc7+ {
[%emt 0:00:22]} Ka8 {[%emt 0:00:13]} 64. Rxd8 {[%emt 0:00:18]} Rxd8 {
[%emt 0:00:02]} 65. Bxd8 {[%emt 0:00:08]} Kb8 {[%emt 0:00:03]} 66. Ka6 {
[%emt 0:00:09]} 1-0

[Event "Charlotte Super Swiss"]
[Site "Charlotte USA"]
[Date "2023.07.11"]
[Round "4"]
[White "Atanasov, Anthony"]
[Black "Moradiabadi, Elshan"]
[Result "1/2-1/2"]
[ECO "A43"]
[WhiteElo "2367"]
[BlackElo "2522"]
[PlyCount "25"]
[EventDate "2023.07.09"]
[EventType "swiss"]
[EventRounds "9"]
[EventCountry "USA"]
[Source "ChessMix"]
[SourceDate "2023.07.20"]
[TimeControl "5400+30"]

1. d4 {[%emt 0:02:13]} Nf6 {[%emt 0:01:24]} 2. Nf3 {[%emt 0:00:06]} c5 {
[%emt 0:02:27]} 3. d5 {[%emt 0:00:07]} b5 {[%emt 0:00:16]} 4. e4 {
[%emt 0:07:36]} Nxe4 {[%emt 0:00:50]} 5. Bd3 {[%emt 0:00:02]} Nf6 {
[%emt 0:00:09]} 6. Bxb5 {[%emt 0:04:09]} g6 {[%emt 0:02:48]} 7. O-O {
[%emt 0:02:43]} Bg7 {[%emt 0:02:01]} 8. d6 {[%emt 0:08:35]} O-O {[%emt 0:03:42]
} 9. Bf4 {[%emt 0:03:11]} e6 {[%emt 0:01:13]} 10. Nc3 {[%emt 0:02:44]} Bb7 {
[%emt 0:01:30]} 11. Be3 {[%emt 0:05:18]} Na6 {[%emt 0:13:18]} 12. Qe2 {
[%emt 0:02:24]} Qc8 {[%emt 0:00:01]} 13. Ne5 {[%emt 0:02:35]} 1/2-1/2

[Event "Charlotte Super Swiss"]
[Site "Charlotte USA"]
[Date "2023.07.11"]
[Round "5"]
[White "Erenburg, Sergey"]
[Black "Atanasov, Anthony"]
[Result "1/2-1/2"]
[ECO "C42"]
[WhiteElo "2559"]
[BlackElo "2367"]
[PlyCount "110"]
[EventDate "2023.07.09"]
[EventType "swiss"]
[EventRounds "9"]
[EventCountry "USA"]
[Source "ChessMix"]
[SourceDate "2023.07.20"]
[TimeControl "5400+30"]

1. e4 {[%emt 0:03:34]} e5 {[%emt 0:00:32]} 2. Nf3 {[%emt 0:00:08]} Nf6 {
[%emt 0:00:04]} 3. Nxe5 {[%emt 0:00:35]} d6 {[%emt 0:00:05]} 4. Nf3 {
[%emt 0:00:02]} Nxe4 {[%emt 0:00:06]} 5. Nc3 {[%emt 0:00:12]} Nxc3 {
[%emt 0:00:14]} 6. dxc3 {[%emt 0:00:04]} Be7 {[%emt 0:00:12]} 7. Bf4 {
[%emt 0:00:31]} Nd7 {[%emt 0:00:15]} 8. Qd2 {[%emt 0:00:33]} O-O {
[%emt 0:00:06]} 9. O-O-O {[%emt 0:00:18]} Re8 {[%emt 0:00:23]} 10. h4 {
[%emt 0:20:23]} h6 {[%emt 0:14:27]} 11. Bc4 {[%emt 0:08:35]} Nf6 {
[%emt 0:16:04]} 12. Rhe1 {[%emt 0:39:03]} d5 {[%emt 0:11:40]} 13. Bxd5 {
[%emt 0:01:19]} Qxd5 {[%emt 0:00:51]} 14. Qxd5 {[%emt 0:00:04]} Nxd5 {
[%emt 0:00:02]} 15. Rxd5 {[%emt 0:00:01]} Bg4 {[%emt 0:04:43]} 16. Rde5 {
[%emt 0:05:36]} Kf8 {[%emt 0:02:01]} 17. Bg3 {[%emt 0:01:19]} Rad8 {
[%emt 0:02:29]} 18. Nd4 {[%emt 0:04:03]} Bd7 {[%emt 0:02:51]} 19. R5e3 {
[%emt 0:04:48]} Rc8 {[%emt 0:02:29]} 20. f3 {[%emt 0:04:40]} Bf6 {
[%emt 0:04:35]} 21. Rxe8+ {[%emt 0:01:24]} Rxe8 {[%emt 0:01:27]} 22. Rxe8+ {
[%emt 0:01:06]} Kxe8 {[%emt 0:00:03]} 23. Bxc7 {[%emt 0:01:09]} Bxh4 {
[%emt 0:00:05]} 24. Be5 {[%emt 0:00:49]} g6 {[%emt 0:02:21]} 25. c4 {
[%emt 0:00:13]} a6 {[%emt 0:01:04]} 26. Kd2 {[%emt 0:00:24]} Bf2 {
[%emt 0:01:06]} 27. Ne2 {[%emt 0:00:35]} h5 {[%emt 0:02:30]} 28. Nc3 {
[%emt 0:00:50]} Bc6 {[%emt 0:01:05]} 29. Ke2 {[%emt 0:01:06]} Bc5 {
[%emt 0:00:25]} 30. a3 {[%emt 0:00:50]} Ke7 {[%emt 0:01:17]} 31. Ne4 {
[%emt 0:01:11]} Bg1 {[%emt 0:08:32]} 32. b4 {[%emt 0:00:22]} f5 {[%emt 0:00:02]
} 33. Ng5 {[%emt 0:00:22]} h4 {[%emt 0:03:03]} 34. Nh3 {[%emt 0:00:31]} Ke6 {
[%emt 0:00:05]} 35. Bf4 {[%emt 0:00:36]} Bd4 {[%emt 0:00:12]} 36. Bg5 {
[%emt 0:00:12]} Bf6 {[%emt 0:01:37]} 37. Ke3 {[%emt 0:00:18]} Bb2 {
[%emt 0:01:15]} 38. Nf4+ {[%emt 0:00:09]} Kf7 {[%emt 0:00:00]} 39. Nd3 {
[%emt 0:00:25]} Bf6 {[%emt 0:03:24]} 40. Bxf6 {[%emt 0:01:09]} Kxf6 {
[%emt 0:00:01]} 41. Nc5 {[%emt 0:00:28]} g5 {[%emt 0:04:52]} 42. a4 {
[%emt 0:00:11]} b6 {[%emt 0:05:07]} 43. Nxa6 {[%emt 0:00:01]} Bxa4 {
[%emt 0:01:27]} 44. c3 {[%emt 0:01:39]} Ke5 {[%emt 0:02:42]} 45. c5 {
[%emt 0:00:06]} bxc5 {[%emt 0:03:26]} 46. Nxc5 {[%emt 0:00:01]} Bb5 {
[%emt 0:00:08]} 47. Nd3+ {[%emt 0:01:26]} Kd5 {[%emt 0:00:38]} 48. f4 {
[%emt 0:00:36]} Bxd3 {[%emt 0:01:17]} 49. Kxd3 {[%emt 0:00:04]} g4 {
[%emt 0:00:01]} 50. c4+ {[%emt 0:00:19]} Kc6 {[%emt 0:00:06]} 51. Ke3 {
[%emt 0:00:45]} Kd6 {[%emt 0:00:17]} 52. Ke2 {[%emt 0:00:27]} Kc6 {
[%emt 0:00:04]} 53. Ke3 {[%emt 0:00:03]} Kd6 {[%emt 0:00:04]} 54. Ke2 {
[%emt 0:00:03]} Kc6 {[%emt 0:00:03]} 55. Ke3 {[%emt 0:00:03]} Kd6 {
[%emt 0:00:31]} 1/2-1/2